fUST/lending_fUST_20241214
["ID","MTS","AMOUNT","RATE_DAILY","PERIOD"]
[345346805,1734167440800,-153.0,0.00028916,2]
[345346807,1734167440812,-153.0,0.00028916,2]
[345346809,1734167440822,-153.0,0.00028916,2]
[345346812,1734167440831,-303.06060909,0.00029,2]
[345346813,1734167440840,-303.06060909,0.00029,2]
[345346816,1734167440849,-1320.21,0.00029032,7]
[345346818,1734167440859,-500.0,0.00029032,7]
[345346820,1734167440867,-902.57,0.00029032,7]
[345346821,1734167440877,-2262.36,0.00029032,7]
[345346824,1734167440886,-500.0,0.00029032,7]
[345346826,1734167440897,-500.0,0.00029032,7]
[345346827,1734167440906,-879.42,0.00029032,5]
[345346829,1734167440916,-1704.59,0.00029032,7]
[345346832,1734167440927,-500.0,0.00029032,7]
[345346834,1734167440936,-347.67808273,0.00029033,7]
[345346836,1734167440946,-296.18946116,0.00029033,7]
[345346838,1734167440955,-500.0,0.00029033,7]
[345346840,1734167440964,-500.0,0.00029033,7]
[345346842,1734167440973,-480.25116142,0.00029033,2]
[345346844,1734167440983,-500.0,0.00029033,7]
[345346846,1734167440992,-500.0,0.00029033,7]
[345346848,1734167441002,-500.0,0.00029033,7]
[345346850,1734167441011,-500.0,0.00029033,7]
[345346852,1734167441020,-500.0,0.00029033,7]
[345346854,1734167441029,-1000.0,0.00029033,2]
[345346856,1734167441039,-500.0,0.00029033,7]
[345346858,1734167441048,-595.78,0.00029033,7]
[345346860,1734167441057,-600.0,0.00029059,2]
[345346862,1734167441066,-303.06060909,0.0002929,2]
[345346864,1734167441075,-303.06060909,0.0002929,2]
[345346866,1734167441084,-1320.21,0.00029306,7]
[345346868,1734167441093,-500.0,0.00029306,7]
[345346870,1734167441102,-902.57,0.00029306,7]
[345346872,1734167441111,-2262.36,0.00029306,7]
[345346874,1734167441120,-500.0,0.00029306,7]
[345346876,1734167441129,-500.0,0.00029306,7]
[345346878,1734167441139,-879.42,0.00029306,5]
[345346880,1734167441148,-1704.59,0.00029306,7]
[345346882,1734167441157,-195.42,0.00029306,7]
[345346884,1734167441166,-500.0,0.00029307,7]
[345346886,1734167441175,-500.0,0.00029307,7]
[345346888,1734167441185,-500.0,0.00029307,7]
[345346890,1734167441194,-201.02063562,0.00029307,7]
[345346892,1734167441205,-1000.0,0.00029307,2]
[345346894,1734167441215,-600.0,0.00029362,2]
[345346896,1734167441226,-1320.21,0.0002958,7]
[345346898,1734167441235,-500.0,0.0002958,7]
[345346900,1734167441244,-303.06060909,0.0002958,2]
[345346902,1734167441253,-902.57,0.0002958,7]
[345346904,1734167441263,-2262.36,0.0002958,7]
[345346906,1734167441272,-500.0,0.0002958,7]
[345346908,1734167441281,-500.0,0.0002958,7]
[345346910,1734167441291,-879.42,0.0002958,5]
[345346912,1734167441300,-303.06060909,0.0002958,2]
[345346914,1734167441310,-1704.59,0.0002958,7]
[345346916,1734167441319,-500.0,0.00029581,7]
[345346918,1734167441329,-506.99587178,0.00029581,7]
[345346920,1734167441339,-1000.0,0.00029581,2]
[345346922,1734167441348,-447.65,0.00029592,2]
[345346924,1734167441358,-610.38414383,0.00029665,2]
[345346927,1734167441368,-3956.202579,0.0002972,2]
[345346929,1734167441377,-1320.21,0.00029854,7]
[345346931,1734167441387,-500.0,0.00029854,7]
[345346933,1734167441396,-902.57,0.00029854,7]
[345346935,1734167441405,-2262.36,0.00029854,7]
[345346937,1734167441415,-500.0,0.00029854,7]
[345346939,1734167441425,-500.0,0.00029854,7]
[345346941,1734167441435,-879.42,0.00029854,5]
[345346943,1734167441444,-1704.59,0.00029854,7]
[345346945,1734167441453,-500.0,0.00029855,7]
[345346947,1734167441462,-1000.0,0.00029855,2]
[345346949,1734167441472,-303.06060909,0.0002987,2]
[345346951,1734167441481,-303.06060909,0.0002987,2]
[345346953,1734167441490,-15253.99971138,0.0002999,2]
[345346956,1734167441506,-1229.299975,0.0002999,2]
[345347629,1734167951609,169.797596,0.00013973,2]
[345347659,1734168520590,18790.3034821,0.0001999,2]
[345347660,1734168520636,20000.0,0.0001999,2]
[345347661,1734168520675,14531.26605708,0.0001999,2]
[345347713,1734168632379,-300.0,0.00024999,2]
[345347715,1734168632391,-300.0,0.00024999,2]
[345347717,1734168632402,-6582.57017056,0.00025,7]
[345347815,1734168638446,-20337.11128038,0.00025,7]
[345347834,1734168638611,-47515.30831207,0.00025,7]
[345348201,1734168644114,-34473.17266537,0.00025,7]
[345348202,1734168644124,-891.79879525,0.00025421,2]
[345348203,1734168644134,-891.79879518,0.00026096,2]
[345348204,1734168644143,-4944.3342381,0.00026276,2]
[345348205,1734168644155,-856.8979989,0.00026524,2]
[345348206,1734168644164,-891.79879518,0.00026772,2]
[345348207,1734168644173,-420.0,0.00027082,2]
[345348208,1734168644183,-300.0,0.000273,13]
[345348209,1734168644192,-418.38,0.000273,31]
[345348210,1734168644201,-418.38,0.000273,31]
[345348211,1734168644210,-418.38,0.000273,31]
[345348212,1734168644219,-418.38,0.000273,31]
[345348213,1734168644228,-418.38,0.000273,31]
[345348214,1734168644238,-418.38,0.000273,31]
[345348215,1734168644250,-418.38,0.000273,31]
[345348216,1734168644259,-418.38,0.000273,31]
[345348217,1734168644267,-418.38,0.000273,31]
[345348218,1734168644277,-418.38,0.000273,31]
[345348219,1734168644288,-418.38,0.000273,31]
[345348220,1734168644297,-418.38,0.000273,31]
[345348221,1734168644306,-500.0,0.00027397,7]
[345348222,1734168644315,-427.6502116,0.00027397,7]
[345348223,1734168644324,-864.97,0.00027397,7]
[345348224,1734168644334,-500.0,0.00027397,7]
[345348225,1734168644343,-500.0,0.00027397,7]
[345348226,1734168644352,-500.0,0.00027397,7]
[345348227,1734168644361,-500.0,0.00027397,7]
[345348228,1734168644370,-229.52132703,0.00027397,7]
[345348229,1734168644380,-401.80071283,0.00027397,7]
[345348230,1734168644389,-155.23753011,0.00027397,7]
[345348231,1734168644400,-314.21721844,0.00027397,7]
[345348232,1734168644409,-500.0,0.00027397,7]
[345348233,1734168644419,-457.81106463,0.00027397,7]
[345348234,1734168644428,-302.71520537,0.00027397,7]
[345348235,1734168644438,-220.89989802,0.00027397,7]
[345348236,1734168644447,-190.99726082,0.00027397,2]
[345348237,1734168644456,-435.02102942,0.000274,2]
[345348248,1734169003425,169.797596,0.00013973,2]
[345348251,1734169230654,4000.0,0.000255,120]
[345348329,1734169838498,-3548.2300588,0.00024871,2]
[345348331,1734169838508,-378.32008074,0.00025122,7]
[345348333,1734169838518,-300.0,0.0002608,2]
[345348335,1734169838527,-300.0,0.0002608,2]
[345348337,1734169838537,-3803.82590422,0.00026081,2]
[345348340,1734169838555,-4186.18134768,0.00026081,2]
[345348342,1734169838564,-9192.754693,0.00026965,2]
[345348344,1734169838574,-160.0,0.00027,2]
[345348345,1734169838583,-9192.75469301,0.0002717,2]
[345348346,1734169838593,-557.37424704,0.00027297,2]
[345348347,1734169838602,-300.0,0.000273,13]
[345348348,1734169838612,-368.2,0.000273,31]
[345348350,1734169838621,-368.2,0.000273,31]
[345348352,1734169838631,-368.2,0.000273,31]
[345348354,1734169838640,-368.2,0.000273,31]
[345348356,1734169838650,-368.2,0.000273,31]
[345348358,1734169838659,-368.2,0.000273,31]
[345348360,1734169838673,-368.2,0.000273,31]
[345348362,1734169838688,-368.2,0.000273,31]
[345348364,1734169838698,-368.2,0.000273,31]
[345348366,1734169838708,-368.2,0.000273,31]
[345348368,1734169838718,-368.2,0.000273,31]
[345348371,1734169838728,-368.2,0.000273,31]
[345348373,1734169838738,-500.0,0.00027373,2]
[345348374,1734169838752,-273.0346183,0.00027373,2]
[345348376,1734169838762,-500.0,0.00027373,2]
[345348379,1734169838772,-358.80470718,0.00027397,7]
[345348381,1734169838782,-345.24807662,0.00027397,7]
[345348383,1734169838793,-164.04783147,0.00027397,7]
[345348384,1734169838803,-500.0,0.00027397,2]
[345348387,1734169838812,-223.37091862,0.00027397,7]
[345348388,1734169838822,-391.51528217,0.00027397,7]
[345348390,1734169838832,-500.0,0.00027397,7]
[345348393,1734169838841,-452.27361736,0.00027397,7]
[345348395,1734169838851,-396.75224186,0.00027397,7]
[345348396,1734169838860,-281.9860327,0.00027397,7]
[345348398,1734169838869,-249.04415472,0.00027397,7]
[345348400,1734169838879,-270.01983906,0.00027397,7]
[345348402,1734169838888,-403.38525395,0.00027397,7]
[345348404,1734169838897,-500.0,0.00027397,7]
[345348406,1734169838907,-500.0,0.00027397,7]
[345348409,1734169838922,-500.0,0.00027397,7]
[345348410,1734169838931,-500.0,0.00027397,7]
[345348413,1734169838944,-286.89670889,0.00027397,7]
[345348414,1734169838954,-290.43068933,0.00027397,7]
[345348416,1734169838964,-187.0169918,0.00027397,7]
[345348418,1734169838973,-472.56539216,0.00027397,7]
[345348421,1734169838984,-215.53205127,0.00027397,7]
[345348423,1734169838993,-373.84901523,0.00027397,7]
[345348425,1734169839002,-249.3955714,0.00027397,7]
[345348426,1734169839012,-432.93905247,0.00027397,7]
[345348429,1734169839021,-423.94861862,0.00027397,7]
[345348430,1734169839031,-184.22568619,0.00027397,7]
[345348432,1734169839041,-152.30898343,0.00027397,7]
[345348434,1734169839050,-306.05263999,0.00027397,7]
[345348437,1734169839060,-302.96267145,0.00027397,7]
[345348439,1734169839071,-500.0,0.00027397,7]
[345348441,1734169839081,-387.91528973,0.00027397,7]
[345348443,1734169839089,-325.15920199,0.00027397,7]
[345348445,1734169839099,-500.0,0.00027397,7]
[345348447,1734169839108,-472.83797806,0.00027397,7]
[345348449,1734169839117,-500.0,0.00027397,7]
[345348451,1734169839126,-466.66836363,0.00027397,7]
[345348453,1734169839135,-423.06941504,0.00027397,7]
[345348455,1734169839144,-512.43981146,0.00027397,7]
[345348457,1734169839153,-487.33721348,0.00027397,7]
[345348459,1734169839167,-373.00169282,0.00027397,7]
[345348461,1734169839176,-170.52537742,0.00027397,7]
[345348463,1734169839187,-383.94005188,0.00027397,7]
[345348465,1734169839197,-328.92698204,0.00027397,7]
[345348467,1734169839206,-500.0,0.00027397,7]
[345348469,1734169839215,-191.55967795,0.00027397,7]
[345348471,1734169839224,-264.04973248,0.00027397,7]
[345348473,1734169839234,-500.0,0.00027397,7]
[345348475,1734169839243,-350.98328828,0.00027397,7]
[345348477,1734169839252,-324.34136985,0.00027397,7]
[345348479,1734169839262,-153.24213359,0.00027397,7]
[345348481,1734169839272,-500.0,0.00027397,7]
[345348483,1734169839281,-297.0,0.00027397,7]
[345348485,1734169839291,-421.47842394,0.00027397,7]
[345348487,1734169839300,-219.75789225,0.00027397,7]
[345348489,1734169839309,-172.12271844,0.00027397,7]
[345348490,1734169839318,-325.29663877,0.00027397,7]
[345348493,1734169839327,-164.88225323,0.00027397,7]
[345348495,1734169839337,-500.0,0.00027397,7]
[345348497,1734169839347,-500.0,0.00027397,7]
[345348499,1734169839356,-500.0,0.00027397,2]
[345348500,1734169839365,-279.33193961,0.00027397,7]
[345348502,1734169839374,-305.25229621,0.00027397,7]
[345348504,1734169839383,-245.13777099,0.00027397,7]
[345348506,1734169839392,-413.9843688,0.00027397,7]
[345348508,1734169839401,-227.14878416,0.00027397,7]
[345348510,1734169839411,-488.89380885,0.00027397,7]
[345348512,1734169839423,-399.83714725,0.00027397,7]
[345348514,1734169839432,-169.75990741,0.00027397,7]
[345348516,1734169839443,-356.42399692,0.00027397,7]
[345348519,1734169839452,-500.0,0.00027397,7]
[345348520,1734169839461,-162.77213083,0.00027397,7]
[345348522,1734169839471,-250.37947683,0.00027397,7]
[345348524,1734169839480,-178.12,0.00027397,7]
[345348527,1734169839489,-165.5947416,0.00027397,7]
[345348529,1734169839499,-1000.0,0.00027397,2]
[345348531,1734169839508,-209.76498811,0.00027397,7]
[345348533,1734169839518,-207.40087985,0.00027397,7]
[345348535,1734169839527,-241.19459117,0.00027397,7]
[345348537,1734169839536,-215.32902481,0.00027397,7]
[345348539,1734169839546,-348.37237108,0.00027397,7]
[345348541,1734169839555,-330.34224304,0.00027397,7]
[345348543,1734169839565,-500.0,0.00027397,7]
[345348545,1734169839575,-243.49685719,0.00027397,7]
[345348547,1734169839584,-324.61947672,0.00027397,7]
[345348549,1734169839593,-468.33564639,0.00027397,7]
[345348551,1734169839602,-342.62446171,0.00027397,7]
[345348553,1734169839611,-500.0,0.00027397,7]
[345348555,1734169839621,-500.0,0.00027397,7]
[345348557,1734169839630,-500.0,0.00027397,7]
[345348559,1734169839639,-342.06055604,0.00027397,7]
[345348561,1734169839648,-194.22102778,0.00027397,7]
[345348563,1734169839657,-170.46320592,0.00027397,7]
[345348564,1734169839670,-407.93447593,0.00027397,7]
[345348565,1734169839679,-353.6962283,0.00027397,7]
[345348566,1734169839689,-360.96424728,0.00027397,7]
[345348567,1734169839698,-319.42058681,0.00027397,7]
[345348568,1734169839708,-225.91770768,0.00027397,7]
[345348569,1734169839717,-303.47695763,0.00027397,7]
[345348570,1734169839726,-381.09862287,0.00027397,7]
[345348571,1734169839736,-500.0,0.00027397,7]
[345348572,1734169839749,-599.45727978,0.00027397,7]
[345348573,1734169839759,-500.0,0.00027397,2]
[345348574,1734169839769,-236.60909542,0.00027397,7]
[345348575,1734169839779,-430.38296549,0.00027397,7]
[345348576,1734169839788,-176.90339322,0.00027397,7]
[345348577,1734169839797,-417.55176127,0.00027397,7]
[345348579,1734169839807,-206.32286573,0.00027397,7]
[345348581,1734169839816,-436.52868063,0.00027397,7]
[345348583,1734169839826,-205.11202559,0.00027397,7]
[345348585,1734169839835,-241.01837816,0.00027397,7]
[345348587,1734169839846,-297.45825469,0.00027397,7]
[345348589,1734169839855,-224.08378192,0.00027397,7]
[345348592,1734169839865,-263.12524479,0.00027397,7]
[345348594,1734169839875,-386.96325731,0.00027397,7]
[345348596,1734169839884,-163.5427613,0.00027397,7]
[345348598,1734169839894,-356.50852208,0.00027397,7]
[345348600,1734169839903,-356.44596475,0.00027397,7]
[345348602,1734169839916,-500.0,0.00027397,7]
[345348604,1734169839926,-329.23966428,0.00027397,7]
[345348606,1734169839935,-467.92790097,0.00027397,7]
[345348608,1734169839944,-303.60815451,0.00027397,7]
[345348610,1734169839957,-500.0,0.00027397,7]
[345348612,1734169839966,-375.9809079,0.00027397,7]
[345348614,1734169839975,-484.01939897,0.00027397,7]
[345348616,1734169839986,-194.2478297,0.00027397,7]
[345348618,1734169839995,-500.0,0.00027397,7]
[345348620,1734169840004,-246.61230515,0.00027397,7]
[345348622,1734169840013,-287.61768756,0.00027397,7]
[345348624,1734169840021,-249.56521135,0.00027397,7]
[345348626,1734169840030,-340.79416499,0.00027397,7]
[345348628,1734169840040,-243.31825517,0.00027397,7]
[345348630,1734169840048,-1265.2,0.00027397,7]
[345348632,1734169840056,-238.51475605,0.00027397,7]
[345348634,1734169840065,-335.25008717,0.00027397,7]
[345348636,1734169840074,-500.0,0.00027397,7]
[345348639,1734169840083,-317.92110821,0.00027397,7]
[345348641,1734169840092,-468.54110007,0.00027397,7]
[345348643,1734169840101,-196.67331306,0.00027397,7]
[345348645,1734169840111,-500.0,0.00027397,7]
[345348647,1734169840120,-176.95271374,0.00027397,7]
[345348649,1734169840129,-500.0,0.00027397,7]
[345348651,1734169840139,-470.0,0.00027397,7]
[345348653,1734169840148,-500.0,0.00027397,7]
[345348655,1734169840157,-152.2932212,0.00027397,7]
[345348657,1734169840171,-288.5594505,0.00027397,7]
[345348659,1734169840180,-500.0,0.00027397,7]
[345348661,1734169840189,-500.0,0.00027397,7]
[345348663,1734169840199,-200.0,0.00027397,7]
[345348665,1734169840209,-500.0,0.00027397,2]
[345348667,1734169840218,-269.68162279,0.00027397,7]
[345348669,1734169840227,-382.16715347,0.00027397,7]
[345348671,1734169840237,-500.0,0.00027397,7]
[345348673,1734169840246,-393.93037498,0.00027397,7]
[345348675,1734169840255,-448.70204588,0.00027397,7]
[345348677,1734169840264,-500.0,0.00027397,7]
[345348679,1734169840274,-500.0,0.00027397,7]
[345348681,1734169840283,-500.0,0.00027397,7]
[345348683,1734169840293,-500.0,0.00027397,7]
[345348685,1734169840302,-379.55368906,0.00027397,7]
[345348687,1734169840311,-253.60289479,0.00027397,7]
[345348689,1734169840321,-500.0,0.00027397,7]
[345348691,1734169840330,-500.0,0.00027397,7]
[345348693,1734169840339,-500.0,0.00027397,7]
[345348695,1734169840348,-500.0,0.00027397,7]
[345348697,1734169840357,-154.21437454,0.00027397,7]
[345348699,1734169840366,-460.42314922,0.00027397,7]
[345348700,1734169840375,-348.45933748,0.00027397,7]
[345348702,1734169840385,-424.95932687,0.00027397,7]
[345348704,1734169840394,-275.98206117,0.00027397,7]
[345348735,1734169840675,-1230.5934028,0.00027397,7]
[345348781,1734169843597,-500.0,0.00027373,2]
[345348782,1734169843607,-856.67453603,0.00027397,7]
[345348783,1734169843617,-190.59352674,0.00027397,7]
[345348784,1734169843626,-396.31151184,0.00027397,7]
[345348785,1734169843636,-170.38114623,0.00027397,7]
[345348786,1734169843645,-266.70602019,0.00027397,7]
[345348787,1734169843655,-164.82382574,0.00027397,7]
[345348788,1734169843664,-370.38171001,0.00027397,7]
[345348789,1734169843674,-828.93,0.00027397,7]
[345348790,1734169843683,-500.0,0.00027397,7]
[345348791,1734169843781,-260.84088177,0.00027397,7]
[345348792,1734169843810,-354.30904326,0.00027397,7]
[345348793,1734169843821,-352.72939374,0.00027397,7]
[345348794,1734169843831,-500.0,0.00027397,7]
[345348795,1734169843841,-918.64,0.00027397,5]
[345348796,1734169843851,-500.0,0.00027397,7]
[345348797,1734169843860,-377.40547271,0.00027397,7]
[345348798,1734169843869,-270.91767863,0.00027397,7]
[345348799,1734169843879,-500.0,0.00027397,7]
[345348800,1734169843888,-1000.0,0.00027397,2]
[345348801,1734169843898,-243.34910009,0.00027397,7]
[345348802,1734169843908,-500.0,0.00027397,7]
[345348803,1734169843920,-385.62890668,0.00027397,7]
[345348804,1734169843930,-500.0,0.00027397,2]
[345348805,1734169843939,-500.0,0.00027397,7]
[345348806,1734169843949,-404.73948365,0.00027397,7]
[345348807,1734169843958,-361.19404811,0.00027397,7]
[345348808,1734169843968,-500.0,0.00027397,7]
[345348809,1734169843978,-388.22128295,0.00027397,7]
[345348810,1734169843987,-360.9904868,0.00027397,7]
[345348811,1734169843997,-500.0,0.00027397,7]
[345348812,1734169844006,-239.9810385,0.00027397,7]
[345348813,1734169844016,-176.65660572,0.00027397,7]
[345348814,1734169844025,-224.99094829,0.00027397,7]
[345348815,1734169844035,-500.0,0.00027397,7]
[345348816,1734169844044,-500.0,0.00027397,7]
[345348817,1734169844053,-392.41496005,0.00027397,7]
[345348818,1734169844062,-268.11793911,0.00027397,7]
[345348819,1734169844071,-352.33238916,0.00027397,7]
[345348820,1734169844080,-180.17719678,0.00027397,7]
[345348821,1734169844089,-393.61698187,0.00027397,7]
[345348822,1734169844099,-500.0,0.00027397,7]
[345348823,1734169844108,-238.94386737,0.00027397,7]
[345348824,1734169844117,-468.67346792,0.00027397,7]
[345348825,1734169844126,-254.06382644,0.00027397,7]
[345348826,1734169844139,-500.0,0.00027397,7]
[345348827,1734169844149,-1633.57,0.00027397,7]
[345348828,1734169844158,-500.0,0.00027397,7]
[345348829,1734169844167,-282.84526372,0.00027397,7]
[345348830,1734169844177,-500.0,0.00027397,7]
[345348831,1734169844186,-244.8930102,0.00027397,2]
[345348832,1734169844195,-4000.0,0.00027397,120]
[345348833,1734169844204,-1490.71,0.000274,2]
[345348834,1734169844214,-345.73891196,0.00027571,2]
[345348835,1734169844223,-500.0,0.0002767,2]
[345348836,1734169844232,-464.46284393,0.0002767,2]
[345348837,1734169844241,-294.76190353,0.0002767,2]
[345348838,1734169844251,-205.39605147,0.0002767,2]
[345348839,1734169844260,-500.0,0.0002767,2]
[345348840,1734169844269,-500.0,0.0002767,2]
[345348841,1734169844278,-500.0,0.0002767,2]
[345348842,1734169844287,-500.0,0.0002767,2]
[345348843,1734169844296,-500.0,0.0002767,2]
[345348844,1734169844305,-500.0,0.0002767,2]
[345348845,1734169844315,-500.0,0.0002767,2]
[345348846,1734169844324,-500.0,0.0002767,2]
[345348847,1734169844333,-500.0,0.0002767,2]
[345348848,1734169844342,-500.0,0.0002767,2]
[345348849,1734169844352,-516.86643097,0.0002767,2]
[345348850,1734169844362,-500.0,0.0002767,2]
[345348851,1734169844371,-500.0,0.0002767,2]
[345348852,1734169844380,-500.0,0.0002767,2]
[345348853,1734169844389,-500.0,0.0002767,2]
[345348854,1734169844398,-500.0,0.0002767,2]
[345348855,1734169844407,-426.78646701,0.0002767,2]
[345348856,1734169844418,-500.0,0.0002767,2]
[345348857,1734169844426,-500.0,0.0002767,2]
[345348858,1734169844435,-500.0,0.0002767,2]
[345348859,1734169844444,-500.0,0.0002767,2]
[345348860,1734169844452,-500.0,0.0002767,2]
[345348861,1734169844461,-500.0,0.0002767,2]
[345348862,1734169844470,-500.0,0.0002767,2]
[345348863,1734169844479,-500.0,0.0002767,2]
[345348864,1734169844488,-500.0,0.0002767,2]
[345348865,1734169844497,-500.0,0.0002767,2]
[345348866,1734169844506,-500.0,0.0002767,2]
[345348867,1734169844515,-500.0,0.0002767,2]
[345348868,1734169844524,-500.0,0.0002767,2]
[345348869,1734169844533,-500.0,0.0002767,2]
[345348870,1734169844543,-500.0,0.0002767,2]
[345348871,1734169844553,-500.0,0.0002767,2]
[345348872,1734169844562,-500.0,0.0002767,2]
[345348873,1734169844573,-500.0,0.0002767,2]
[345348874,1734169844583,-500.0,0.0002767,2]
[345348875,1734169844591,-500.0,0.0002767,2]
[345348876,1734169844600,-500.0,0.0002767,2]
[345348877,1734169844609,-500.0,0.0002767,2]
[345348878,1734169844618,-500.0,0.0002767,2]
[345348879,1734169844627,-500.0,0.0002767,2]
[345348880,1734169844637,-650.0,0.0002767,2]
[345348881,1734169844646,-500.0,0.00027671,7]
[345348882,1734169844655,-500.0,0.00027671,7]
[345348883,1734169844664,-500.0,0.00027671,7]
[345348884,1734169844675,-420.05800628,0.00027671,7]
[345348885,1734169844684,-500.0,0.00027671,7]
[345348886,1734169844693,-500.0,0.00027671,7]
[345348887,1734169844702,-500.0,0.00027671,7]
[345348888,1734169844711,-500.0,0.00027671,7]
[345348889,1734169844720,-282.50311711,0.00027671,7]
[345348890,1734169844729,-500.0,0.00027671,7]
[345348891,1734169844738,-500.0,0.00027671,7]
[345348892,1734169844751,-500.0,0.00027671,7]
[345348893,1734169844761,-500.0,0.00027671,2]
[345348894,1734169844770,-500.0,0.00027671,7]
[345348895,1734169844779,-178.12,0.00027671,7]
[345348896,1734169844789,-1000.0,0.00027671,2]
[345348897,1734169844798,-500.0,0.00027671,7]
[345348898,1734169844807,-500.0,0.00027671,7]
[345348899,1734169844818,-500.0,0.00027671,7]
[345348900,1734169844826,-500.0,0.00027671,7]
[345348901,1734169844836,-500.0,0.00027671,7]
[345348902,1734169844845,-500.0,0.00027671,2]
[345348903,1734169844854,-288.43371833,0.00027671,7]
[345348904,1734169844863,-500.0,0.00027671,7]
[345348905,1734169844872,-500.0,0.00027671,7]
[345348906,1734169844881,-1265.2,0.00027671,7]
[345348907,1734169844890,-500.0,0.00027671,7]
[345348908,1734169844901,-500.0,0.00027671,7]
[345348909,1734169844910,-500.0,0.00027671,7]
[345348910,1734169844921,-500.0,0.00027671,7]
[345348911,1734169844930,-500.0,0.00027671,7]
[345348912,1734169844939,-200.0,0.00027671,7]
[345348913,1734169844948,-500.0,0.00027671,2]
[345348914,1734169844957,-500.0,0.00027671,7]
[345348915,1734169844966,-500.0,0.00027671,7]
[345348916,1734169844975,-500.0,0.00027671,7]
[345348917,1734169844985,-500.0,0.00027671,7]
[345348918,1734169844994,-500.0,0.00027671,7]
[345348919,1734169845004,-500.0,0.00027671,7]
[345348920,1734169845014,-2363.25,0.00027671,7]
[345348921,1734169845023,-828.93,0.00027671,7]
[345348922,1734169845032,-500.0,0.00027671,7]
[345348923,1734169845041,-500.0,0.00027671,7]
[345348924,1734169845051,-918.64,0.00027671,5]
[345348925,1734169845067,-500.0,0.00027671,7]
[345348926,1734169845076,-500.0,0.00027671,7]
[345348927,1734169845086,-1000.0,0.00027671,2]
[345348928,1734169845095,-500.0,0.00027671,7]
[345348929,1734169845105,-500.0,0.00027671,2]
[345348930,1734169845115,-500.0,0.00027671,7]
[345348931,1734169845125,-500.0,0.00027671,7]
[345348932,1734169845135,-500.0,0.00027671,7]
[345348933,1734169845145,-500.0,0.00027671,7]
[345348934,1734169845156,-500.0,0.00027671,7]
[345348935,1734169845166,-500.0,0.00027671,7]
[345348936,1734169845178,-500.0,0.00027671,7]
[345348937,1734169845191,-1633.57,0.00027671,7]
[345348938,1734169845201,-500.0,0.00027671,7]
[345348939,1734169845210,-180.058136,0.00027671,2]
[345348940,1734169845219,-180.058136,0.00027671,31]
[345348941,1734169845227,-180.058136,0.00027671,61]
[345348942,1734169845236,-180.058136,0.00027671,90]
[345348943,1734169845245,-180.058136,0.00027671,120]
[345348944,1734169845255,-163.62543021,0.00027673,5]
[345348945,1734169845264,-159.16055551,0.00027673,3]
[345348946,1734169845272,-500.0,0.00027673,5]
[345348947,1734169845281,-557.37424698,0.00027704,2]
[345348948,1734169845290,-345.73891192,0.00027778,2]
[345348949,1734169845299,-1178.72379,0.0002787,15]
[345348950,1734169845310,-1007.52677207,0.00027921,5]
[345348951,1734169845320,-308.49654375,0.00027921,5]
[345348961,1734169846584,-491.94949427,0.00027921,5]
[345348962,1734169846593,-219.28873151,0.00027934,7]
[345348965,1734169926590,169.822673,0.00013973,2]
[345349023,1734171032688,-300.0,0.00025204,2]
[345349025,1734171032698,-300.0,0.00025204,2]
[345349027,1734171032707,-1199.27366754,0.00025205,5]
[345349038,1734171032804,-19173.54633246,0.00025205,5]
[345349040,1734171032814,-2151.0,0.00026849,60]
[345349042,1734171032823,-159.25182579,0.00027,2]